fUST/lending_fUST_20260508
["ID","MTS","AMOUNT","RATE_DAILY","PERIOD"]
[421863575,1778244643000,-1312.97,0.00014794,2]
[421863569,1778244643000,-877.5,0.00014794,2]
[421863568,1778244643000,-4235.89,0.00014794,2]
[421863574,1778244643000,-500.0,0.00014794,2]
[421863564,1778244643000,-500.0,0.00014794,2]
[421863571,1778244643000,-500.0,0.00014794,2]
[421863570,1778244643000,-500.0,0.00014794,2]
[421863573,1778244643000,-747.5,0.00014794,2]
[421863572,1778244643000,-648.9,0.00014794,2]
[421863577,1778244643000,-500.0,0.00014794,2]
[421863580,1778244643000,-540.68,0.00014794,2]
[421863587,1778244643000,-620.71,0.00014999,2]
[421863588,1778244643000,-10208.42789502,0.00015,2]
[421863578,1778244643000,-884.05,0.00014794,2]
[421863576,1778244643000,-462.31,0.00014794,2]
[421863579,1778244643000,-500.0,0.00014794,2]
[421863583,1778244643000,-496.475,0.000148,2]
[421863623,1778244643000,-4235.89,0.00015342,2]
[421863647,1778244643000,-1047.44378965,0.000156,2]
[421863619,1778244643000,-500.0,0.00015342,2]
[421863655,1778244643000,-648.9,0.00015616,2]
[421863654,1778244643000,-629.5536058,0.00015616,2]
[421863662,1778244643000,-540.68,0.00015616,2]
[421863663,1778244643000,-2141.37680403,0.0001568,2]
[421863667,1778244643000,-443.96745,0.0001568,7]
[421863665,1778244643000,-271.873007,0.0001568,7]
[421863664,1778244643000,-174.664649,0.0001568,7]
[421863661,1778244643000,-500.0,0.00015616,2]
[421863658,1778244643000,-1312.97,0.00015616,2]
[421863666,1778244643000,-160.0,0.0001568,7]
[421863659,1778244643000,-500.0,0.00015616,2]
[421863656,1778244643000,-747.5,0.00015616,2]
[421863657,1778244643000,-500.0,0.00015616,2]
[421863660,1778244643000,-884.05,0.00015616,2]
[421863668,1778244643000,-727.9349,0.0001568,7]
[421863670,1778244643000,-1558.32705617,0.000157,2]
[421863672,1778244643000,-803.59025149,0.00015776,2]
[421863671,1778244643000,-596.52011359,0.000157,2]
[421863678,1778244643000,-177.48117385,0.0001589,2]
[421863679,1778244643000,-709.21477071,0.0001589,2]
[421863673,1778244643000,-10208.42789502,0.000158,2]
[421863674,1778244643000,-1047.44378965,0.000158,2]
[421863676,1778244643000,-596.52011359,0.000158,2]
[421863681,1778244643000,-719.79,0.0001589,2]
[421863680,1778244643000,-500.0,0.0001589,2]
[421863675,1778244643000,-1558.32705617,0.000158,2]
[421863677,1778244643000,-1291.05128023,0.00015872,2]
[421863682,1778244643000,-520.9,0.0001589,2]
[421863625,1778244643000,-500.0,0.00015342,2]
[421863648,1778244643000,-500.0,0.00015616,2]
[421863652,1778244643000,-4235.89,0.00015616,2]
[421863669,1778244643000,-367.137184,0.0001568,2]
[421863653,1778244643000,-877.5,0.00015616,2]
[421863651,1778244643000,-489.22859344,0.00015616,2]
[421863626,1778244643000,-265.79756104,0.00015342,2]
[421863622,1778244643000,-500.0,0.00015342,2]
[421863624,1778244643000,-877.5,0.00015342,2]
[421863621,1778244643000,-520.9,0.00015342,2]
[421863617,1778244643000,-4762.35482811,0.00015259,3]
[421863620,1778244643000,-719.79,0.00015342,2]
[421863627,1778244643000,-648.9,0.00015342,2]
[421863616,1778244643000,-193.58393973,0.000152,2]
[421863630,1778244643000,-1312.97,0.00015342,2]
[421863628,1778244643000,-747.5,0.00015342,2]
[421863641,1778244643000,-200.0,0.00015491,2]
[421863640,1778244643000,-442.0,0.00015469,2]
[421863629,1778244643000,-500.0,0.00015342,2]
[421863631,1778244643000,-500.0,0.00015342,2]
[421863618,1778244643000,-10208.42789502,0.000153,2]
[421863637,1778244643000,-2208.121,0.00015469,2]
[421863649,1778244643000,-719.79,0.00015616,2]
[421863632,1778244643000,-884.05,0.00015342,2]
[421863650,1778244643000,-520.9,0.00015616,2]
[421863643,1778244643000,-1558.32705617,0.000155,2]
[421863645,1778244643000,-160.0,0.00015519,5]
[421863646,1778244643000,-10208.42789502,0.000156,2]
[421863642,1778244643000,-10208.42789502,0.000155,2]
[421863644,1778244643000,-596.52011359,0.000155,2]
[421863634,1778244643000,-540.68,0.00015342,2]
[421863636,1778244643000,-2547.69737462,0.00015453,2]
[421863639,1778244643000,-185.0,0.00015469,2]
[421863638,1778244643000,-1411.0,0.00015469,2]
[421863635,1778244643000,-1560.0,0.00015342,2]
[421863633,1778244643000,-500.0,0.00015342,2]
[421863688,1778244644000,-1312.97,0.0001589,2]
[421863698,1778244644000,-1291.05128023,0.00015944,2]
[421863695,1778244644000,-1047.44378965,0.000159,2]
[421863697,1778244644000,-160.0,0.00015916,6]
[421863694,1778244644000,-10208.42789502,0.000159,2]
[421863691,1778244644000,-362.13463374,0.0001589,2]
[421863699,1778244644000,-500.0,0.00015973,2]
[421863689,1778244644000,-500.0,0.0001589,2]
[421863685,1778244644000,-648.9,0.0001589,2]
[421863684,1778244644000,-877.5,0.0001589,2]
[421863692,1778244644000,-540.68,0.0001589,2]
[421863693,1778244644000,-486.84,0.0001589,2]
[421863687,1778244644000,-632.59054268,0.0001589,2]
[421863690,1778244644000,-884.05,0.0001589,2]
[421863683,1778244644000,-4235.89,0.0001589,2]
[421863702,1778244644000,-500.0,0.00015973,2]
[421863686,1778244644000,-747.5,0.0001589,2]
[421863708,1778244644000,-500.17922279,0.00015973,2]
[421863714,1778244644000,-5464.04158642,0.00015981,3]
[421863700,1778244644000,-500.0,0.00015973,2]
[421863719,1778244644000,-20508.59991387,0.00016,2]
[421863717,1778244644000,-20538.39863886,0.00016,2]
[421863718,1778244644000,-4663.58074933,0.00016,2]
[421863712,1778244644000,-500.0,0.00015973,2]
[421863716,1778244644000,-167712.53576221,0.00016,2]
[421863701,1778244644000,-500.0,0.00015973,2]
[421863711,1778244644000,-503.22823256,0.00015973,2]
[421863713,1778244644000,-500.0,0.00015973,2]
[421863715,1778244644000,-81303.32923456,0.00016,2]
[421863709,1778244644000,-500.0,0.00015973,2]
[421863704,1778244644000,-500.0,0.00015973,2]
[421863706,1778244644000,-532.82588762,0.00015973,2]
[421863705,1778244644000,-500.0,0.00015973,2]
[421863703,1778244644000,-521.85455091,0.00015973,2]
[421863707,1778244644000,-500.0,0.00015973,2]
[421863696,1778244644000,-1291.05128023,0.00015913,2]
[421863710,1778244644000,-500.0,0.00015973,2]
[421863750,1778244646000,-47.95578382,0.00015174,3]
[421863745,1778244646000,-1041.86679814,0.00014175,2]
[421863746,1778244646000,-1508.61336449,0.00014888,2]
[421863744,1778244646000,-357.11345386,0.00010958,2]
[421863749,1778244646000,-1275.93956305,0.00014888,2]
[421863752,1778244646000,-3207.04786694,0.00015317,3]
[421863753,1778244646000,-3707.62114705,0.00015459,3]
[421863754,1778244646000,-4289.63840134,0.00015602,3]
[421863755,1778244646000,-1427.58453602,0.0001568,2]
[421863756,1778244646000,-4414.69308767,0.00015745,3]
[421863758,1778244646000,-23846.76215501,0.00016,2]
[421863757,1778244646000,-5121.7650283,0.00015887,3]
[421863751,1778244646000,-3085.72093398,0.00015174,3]
[421863759,1778244647000,-15286.64332034,0.00016,2]
[421863762,1778244725000,859.15,0.00019178,120]
[421863764,1778245253000,-419.91550361,0.00010633,2]
[421863939,1778245838000,-347.63337093,0.00010187,2]
[421863943,1778245838000,-500.0,0.00010958,2]
[421863941,1778245838000,-500.0,0.00010958,2]
[421863940,1778245838000,-500.0,0.00010958,2]
[421863949,1778245838000,-447.29,0.00010958,2]
[421863942,1778245838000,-500.0,0.00010958,2]
[421863951,1778245838000,-500.0,0.00010958,2]
[421863944,1778245838000,-500.0,0.00010958,2]
[421863938,1778245838000,-300.0,0.00010184,2]
[421863946,1778245838000,-500.0,0.00010958,2]
[421863945,1778245838000,-500.0,0.00010958,2]
[421863935,1778245838000,-419.91550361,9.801e-05,2]
[421863955,1778245838000,-500.0,0.00010958,2]
[421863947,1778245838000,-500.0,0.00010958,2]
[421863936,1778245838000,-1948.34441664,9.9e-05,2]
[421863937,1778245838000,-7389.85931297,0.0001,2]
[421863959,1778245838000,-500.0,0.00011175,2]
[421863948,1778245838000,-500.0,0.00010958,2]
[421863952,1778245838000,-500.0,0.00010958,2]
[421863969,1778245838000,-300.0,0.00011176,2]
[421863970,1778245838000,-300.0,0.00011176,2]
[421863967,1778245838000,-500.0,0.00011175,2]
[421863950,1778245838000,-500.0,0.00010958,2]
[421863966,1778245838000,-500.0,0.00011175,2]
[421863964,1778245838000,-790.7,0.00011175,2]
[421863963,1778245838000,-500.0,0.00011175,2]
[421863965,1778245838000,-530.5,0.00011175,2]
[421863962,1778245838000,-500.0,0.00011175,2]
[421863968,1778245838000,-300.0,0.00011176,2]
[421863960,1778245838000,-3068.05,0.00011175,2]
[421863961,1778245838000,-583.44,0.00011175,2]
[421863956,1778245838000,-500.0,0.00011175,2]
[421863953,1778245838000,-500.0,0.00010958,2]
[421863954,1778245838000,-500.0,0.00010958,2]
[421863957,1778245838000,-522.98,0.00011175,2]
[421863958,1778245838000,-500.0,0.00011175,2]
[421864022,1778245839000,-522.98,0.00011723,2]
[421864023,1778245839000,-500.0,0.00011723,2]
[421864018,1778245839000,-500.0,0.00011506,2]
[421864021,1778245839000,-390.54,0.00011723,2]
[421864020,1778245839000,-18207.05237335,0.0001168,2]
[421864010,1778245839000,-500.0,0.00011506,2]
[421864011,1778245839000,-500.0,0.00011506,2]
[421864002,1778245839000,-583.44,0.00011449,2]
[421864006,1778245839000,-530.5,0.00011449,2]
[421864004,1778245839000,-500.0,0.00011449,2]
[421864005,1778245839000,-790.7,0.00011449,2]
[421863999,1778245839000,-500.0,0.00011449,2]
[421864019,1778245839000,-500.0,0.00011506,2]
[421864012,1778245839000,-500.0,0.00011506,2]
[421864028,1778245839000,-500.0,0.00011723,2]
[421864015,1778245839000,-500.0,0.00011506,2]
[421864013,1778245839000,-500.0,0.00011506,2]
[421864017,1778245839000,-500.0,0.00011506,2]
[421864025,1778245839000,-3068.05,0.00011723,2]
[421864034,1778245839000,-500.0,0.0001178,2]
[421864035,1778245839000,-500.0,0.0001178,2]
[421864036,1778245839000,-500.0,0.0001178,2]
[421864024,1778245839000,-500.0,0.00011723,2]
[421864026,1778245839000,-583.44,0.00011723,2]
[421864037,1778245839000,-500.0,0.0001178,2]
[421864027,1778245839000,-500.0,0.00011723,2]
[421864030,1778245839000,-530.5,0.00011723,2]
[421864001,1778245839000,-3068.05,0.00011449,2]
[421864016,1778245839000,-500.0,0.00011506,2]
[421864009,1778245839000,-500.0,0.00011506,2]
[421863975,1778245839000,-300.0,0.00011176,2]
[421864003,1778245839000,-500.0,0.00011449,2]
[421863972,1778245839000,-300.0,0.00011176,2]
[421863971,1778245839000,-300.0,0.00011176,2]
[421863974,1778245839000,-300.0,0.00011176,2]
[421863973,1778245839000,-300.0,0.00011176,2]
[421863976,1778245839000,-300.0,0.00011176,2]
[421863986,1778245839000,-500.0,0.00011232,2]
[421863982,1778245839000,-300.0,0.00011176,2]
[421863983,1778245839000,-500.0,0.00011232,2]
[421863985,1778245839000,-500.0,0.00011232,2]
[421863981,1778245839000,-300.0,0.00011176,2]
[421863979,1778245839000,-300.0,0.00011176,2]
[421863977,1778245839000,-300.0,0.00011176,2]
[421863984,1778245839000,-500.0,0.00011232,2]
[421863978,1778245839000,-300.0,0.00011176,2]
[421863980,1778245839000,-300.0,0.00011176,2]
[421863987,1778245839000,-500.0,0.00011232,2]
[421863989,1778245839000,-500.0,0.00011232,2]
[421863990,1778245839000,-500.0,0.00011232,2]
[421863988,1778245839000,-500.0,0.00011232,2]
[421863998,1778245839000,-522.98,0.00011449,2]
[421863991,1778245839000,-500.0,0.00011232,2]
[421863992,1778245839000,-500.0,0.00011232,2]
[421863996,1778245839000,-5143.61714629,0.00011406,2]
[421863995,1778245839000,-600.0,0.00011399,2]
[421863994,1778245839000,-500.0,0.00011232,2]
[421863993,1778245839000,-500.0,0.00011232,2]
[421863997,1778245839000,-500.0,0.00011449,2]
[421864000,1778245839000,-500.0,0.00011449,2]
[421864008,1778245839000,-500.0,0.00011449,2]
[421864007,1778245839000,-500.0,0.00011449,2]
[421864031,1778245839000,-500.0,0.00011723,2]
[421864014,1778245839000,-500.0,0.00011506,2]
[421864032,1778245839000,-500.0,0.00011723,2]
[421864069,1778245839000,-790.7,0.00012271,2]
[421864075,1778245839000,-500.0,0.00012328,2]
[421864074,1778245839000,-500.0,0.00012328,2]
[421864079,1778245839000,-500.0,0.00012328,2]
[421864077,1778245839000,-462.31,0.00012328,2]
[421864078,1778245839000,-500.0,0.00012328,2]
[421864076,1778245839000,-500.0,0.00012328,2]
[421864071,1778245839000,-500.0,0.00012271,2]
[421864073,1778245839000,-500.0,0.00012328,2]
[421864072,1778245839000,-390.50564758,0.00012271,2]
[421864089,1778245839000,-720.0,0.00012538,2]
[421864088,1778245839000,-442.0,0.00012409,2]
[421864090,1778245839000,-522.98,0.00012545,2]
[421864087,1778245839000,-185.0,0.00012409,2]
[421864092,1778245839000,-500.0,0.00012545,2]
[421864091,1778245839000,-500.0,0.00012545,2]
[421864081,1778245839000,-160.0,0.00012393,2]
[421864080,1778245839000,-160.0,0.00012393,2]
[421864082,1778245839000,-160.0,0.00012393,2]
[421864083,1778245839000,-161.58879827,0.00012393,2]
[421864085,1778245839000,-1411.0,0.00012409,2]
[421864084,1778245839000,-2208.121,0.00012409,2]
[421864086,1778245839000,-645.978,0.00012409,2]
[421864093,1778245839000,-3068.05,0.00012545,2]
[421864095,1778245839000,-500.0,0.00012545,2]
[421864096,1778245839000,-500.0,0.00012545,2]
[421864098,1778245839000,-790.7,0.00012545,2]
[421864094,1778245839000,-583.44,0.00012545,2]
[421864029,1778245839000,-790.7,0.00011723,2]
[421864070,1778245839000,-530.5,0.00012271,2]
[421864067,1778245839000,-500.0,0.00012271,2]
[421864100,1778245839000,-530.5,0.00012545,2]
[421864066,1778245839000,-583.44,0.00012271,2]
[421864068,1778245839000,-500.0,0.00012271,2]
[421864033,1778245839000,-500.0,0.0001178,2]
[421864039,1778245839000,-500.0,0.0001178,2]
[421864049,1778245839000,-500.0,0.00011997,2]
[421864051,1778245839000,-530.5,0.00011997,2]
[421864038,1778245839000,-500.0,0.0001178,2]
[421864042,1778245839000,-166.9675643,0.00011865,2]
[421864041,1778245839000,-500.0,0.0001178,2]
[421864040,1778245839000,-500.0,0.0001178,2]
[421864044,1778245839000,-500.0,0.00011997,2]
[421864043,1778245839000,-522.98,0.00011997,2]
[421864046,1778245839000,-3068.05,0.00011997,2]
[421864047,1778245839000,-583.44,0.00011997,2]
[421864045,1778245839000,-500.0,0.00011997,2]
[421864050,1778245839000,-790.7,0.00011997,2]
[421864052,1778245839000,-500.0,0.00011997,2]
[421864048,1778245839000,-500.0,0.00011997,2]
[421864062,1778245839000,-522.98,0.00012271,2]
[421864060,1778245839000,-500.0,0.00012054,2]
[421864061,1778245839000,-410.2073777,0.00012187,2]
[421864057,1778245839000,-500.0,0.00012054,2]
[421864059,1778245839000,-500.0,0.00012054,2]
[421864058,1778245839000,-500.0,0.00012054,2]
[421864065,1778245839000,-3068.05,0.00012271,2]
[421864055,1778245839000,-500.0,0.00012054,2]
[421864056,1778245839000,-500.0,0.00012054,2]
[421864054,1778245839000,-500.0,0.00012054,2]
[421864063,1778245839000,-500.0,0.00012271,2]
[421864053,1778245839000,-500.0,0.00011997,2]
[421864064,1778245839000,-500.0,0.00012271,2]
[421864148,1778245840000,-522.98,0.00013367,2]
[421864150,1778245840000,-500.0,0.00013367,2]
[421864149,1778245840000,-500.0,0.00013367,2]
[421864147,1778245840000,-500.0,0.0001315,2]
[421864144,1778245840000,-646.0536058,0.0001315,2]
[421864145,1778245840000,-500.0,0.0001315,2]
[421864139,1778245840000,-530.5,0.00013093,2]
[421864143,1778245840000,-500.0,0.0001315,2]
[421864141,1778245840000,-500.0,0.00013093,2]
[421864151,1778245840000,-3068.05,0.00013367,2]
[421864146,1778245840000,-500.0,0.0001315,2]
[421864138,1778245840000,-790.7,0.00013093,2]
[421864156,1778245840000,-530.5,0.00013367,2]
[421864154,1778245840000,-500.0,0.00013367,2]
[421864155,1778245840000,-790.7,0.00013367,2]
[421864153,1778245840000,-500.0,0.00013367,2]
[421864158,1778245840000,-500.0,0.00013424,2]
[421864157,1778245840000,-500.0,0.00013367,2]
[421864159,1778245840000,-181.25054268,0.00013424,2]
[421864162,1778245840000,-522.98,0.00013641,2]
[421864161,1778245840000,-417.81463374,0.00013424,2]
[421864170,1778245840000,-530.5,0.00013641,2]
[421864160,1778245840000,-500.0,0.00013424,2]
[421864163,1778245840000,-500.0,0.00013641,2]
[421864169,1778245840000,-790.7,0.00013641,2]
[421864137,1778245840000,-500.0,0.00013093,2]
[421864152,1778245840000,-583.44,0.00013367,2]
[421864132,1778245840000,-3068.05,0.00013093,2]
[421864118,1778245840000,-530.5,0.00012819,2]
[421864136,1778245840000,-500.0,0.00013093,2]
[421864165,1778245840000,-3068.05,0.00013641,2]
[421864102,1778245840000,-500.0,0.00012545,2]
[421864104,1778245840000,-500.0,0.00012602,2]
[421864105,1778245840000,-500.0,0.00012602,2]
[421864107,1778245840000,-500.0,0.00012602,2]
[421864114,1778245840000,-583.44,0.00012819,2]
[421864113,1778245840000,-3068.05,0.00012819,2]
[421864115,1778245840000,-500.0,0.00012819,2]
[421864106,1778245840000,-500.0,0.00012602,2]
[421864109,1778245840000,-500.0,0.00012602,2]
[421864108,1778245840000,-500.0,0.00012602,2]
[421864110,1778245840000,-522.98,0.00012819,2]
[421864112,1778245840000,-500.0,0.00012819,2]
[421864111,1778245840000,-500.0,0.00012819,2]
[421864117,1778245840000,-790.7,0.00012819,2]
[421864116,1778245840000,-500.0,0.00012819,2]
[421864128,1778245840000,-500.0,0.00013093,2]
[421864127,1778245840000,-522.98,0.00013093,2]
[421864120,1778245840000,-500.0,0.00012876,2]
[421864126,1778245840000,-822.0,0.00012947,2]
[421864123,1778245840000,-500.0,0.00012876,2]
[421864119,1778245840000,-500.0,0.00012819,2]
[421864122,1778245840000,-265.79756104,0.00012876,2]
[421864124,1778245840000,-500.0,0.00012876,2]
[421864121,1778245840000,-500.0,0.00012876,2]
[421864125,1778245840000,-500.0,0.00012876,2]
[421864130,1778245840000,-500.0,0.00013093,2]
[421864134,1778245840000,-583.44,0.00013093,2]
[421864164,1778245840000,-500.0,0.00013641,2]
[421864179,1778245840000,-500.0,0.00013698,2]
[421864167,1778245840000,-500.0,0.00013641,2]
[421864205,1778245840000,-530.5,0.00013915,2]
[421864201,1778245840000,-583.44,0.00013915,2]
[421864203,1778245840000,-500.0,0.00013915,2]
[421864204,1778245840000,-790.7,0.00013915,2]
[421864208,1778245840000,-500.0,0.00013972,2]
[421864209,1778245840000,-34386.08273275,0.00014,7]
[421864202,1778245840000,-500.0,0.00013915,2]
[421864207,1778245840000,-500.0,0.00013972,2]
[421864210,1778245840000,-1592.31085913,0.00014033,2]
[421864211,1778245840000,-500.0,0.00014059,2]
[421864214,1778245840000,-522.98,0.00014189,2]
[421864221,1778245840000,-530.5,0.00014189,2]
[421864222,1778245840000,-500.0,0.00014189,2]
[421864212,1778245840000,-500.0,0.00014059,2]
[421864213,1778245840000,-472.78138446,0.00014187,2]
[421864215,1778245840000,-500.0,0.00014189,2]
[421864219,1778245840000,-500.0,0.00014189,2]
[421864216,1778245840000,-3068.05,0.00014189,2]
[421864218,1778245840000,-500.0,0.00014189,2]
[421864220,1778245840000,-790.7,0.00014189,2]
[421864217,1778245840000,-583.44,0.00014189,2]
[421864223,1778245840000,-500.0,0.00014246,2]
[421864227,1778245840000,-3068.05,0.00014463,2]
[421864224,1778245840000,-500.0,0.00014246,2]
[421864225,1778245840000,-522.98,0.00014463,2]
[421864226,1778245840000,-500.0,0.00014463,2]
[421864166,1778245840000,-583.44,0.00013641,2]
[421864198,1778245840000,-500.0,0.00013915,2]
[421864206,1778245840000,-500.0,0.00013915,2]
[421864228,1778245840000,-583.44,0.00014463,2]
[421864200,1778245840000,-3068.05,0.00013915,2]
[421864199,1778245840000,-585.95859344,0.00013915,2]
[421864168,1778245840000,-500.0,0.00013641,2]
[421864180,1778245840000,-500.0,0.00013698,2]
[421864182,1778245840000,-594.98856796,0.00013698,2]
[421864171,1778245840000,-500.0,0.00013641,2]
[421864183,1778245840000,-500.0,0.00013698,2]
[421864174,1778245840000,-500.0,0.00013698,2]
[421864175,1778245840000,-500.0,0.00013698,2]
[421864177,1778245840000,-500.0,0.00013698,2]
[421864178,1778245840000,-267.4,0.00013698,2]
[421864172,1778245840000,-500.0,0.00013698,2]
[421864176,1778245840000,-500.0,0.00013698,2]
[421864173,1778245840000,-500.0,0.00013698,2]
[421864181,1778245840000,-500.0,0.00013698,2]
[421864193,1778245840000,-1000.0,0.00013699,2]
[421864185,1778245840000,-500.0,0.00013698,2]
[421864188,1778245840000,-500.0,0.00013698,2]
[421864191,1778245840000,-500.0,0.00013698,2]
[421864187,1778245840000,-500.0,0.00013698,2]
[421864190,1778245840000,-500.0,0.00013698,2]
[421864197,1778245840000,-522.98,0.00013915,2]
[421864189,1778245840000,-500.0,0.00013698,2]
[421864186,1778245840000,-500.0,0.00013698,2]
[421864184,1778245840000,-500.0,0.00013698,2]
[421864194,1778245840000,-1000.0,0.00013699,2]
[421864195,1778245840000,-157.61,0.0001371,2]
[421864196,1778245840000,-864.0,0.00013792,2]
[421864192,1778245840000,-382.18,0.00013698,2]
[421864231,1778245841000,-790.7,0.00014463,2]
[421864233,1778245841000,-364.78194866,0.00014463,2]
[421864232,1778245841000,-530.5,0.00014463,2]
[421864230,1778245841000,-500.0,0.00014463,2]
[421864229,1778245841000,-500.0,0.00014463,2]
[421864235,1778245841000,-500.0,0.0001452,2]
[421864239,1778245841000,-11725.70653244,0.000147,5]
[421864238,1778245841000,-6458.94265749,0.000147,5]
[421864234,1778245841000,-500.0,0.0001452,2]
[421864237,1778245841000,-485023.07050124,0.000147,5]
[421864240,1778245841000,-2014.91020796,0.000147,5]
[421864241,1778245841000,-31068.74322757,0.000147,5]
[421864236,1778245841000,-7095.2090798,0.000146,2]
[421864250,1778245844000,-116.94145189,0.00013698,2]
[421864249,1778245844000,-500.0,0.00013698,2]
[421864253,1778245847000,-383.05854811,0.00013698,2]
[421864256,1778245847000,-276.24,0.00013698,2]
[421864257,1778245847000,-15930.81237335,0.000147,5]
[421864254,1778245847000,-500.0,0.00013698,2]
[421864255,1778245847000,-500.0,0.00013698,2]
[421864260,1778246243000,345.2,0.00019178,120]
[421864261,1778246283000,528.89,0.00019178,120]
[421864273,1778246580000,2000.0,0.00019178,120]
[421864513,1778247035000,-5000.0,9.715e-05,2]
[421864934,1778247052000,-500.0,0.00011173,2]
[421864933,1778247052000,-500.0,0.00011173,2]
[421864932,1778247052000,-420.0,0.0001112,2]
[421864937,1778247052000,-500.0,0.00011173,2]
[421864929,1778247052000,-500.0,0.00010958,2]
[421864936,1778247052000,-500.0,0.00011173,2]
[421864948,1778247052000,-660.83,0.0001123,2]
[421864940,1778247052000,-500.0,0.00011173,2]
[421864928,1778247052000,-500.0,0.00010958,2]
[421864947,1778247052000,-3348.45,0.0001123,2]
[421864942,1778247052000,-500.0,0.0001123,2]
[421864941,1778247052000,-500.0,0.00011173,2]
[421864943,1778247052000,-500.0,0.0001123,2]
[421864944,1778247052000,-500.0,0.0001123,2]
[421864939,1778247052000,-500.0,0.00011173,2]
[421864930,1778247052000,-500.0,0.00010958,2]
[421864931,1778247052000,-500.0,0.00010958,2]
[421864935,1778247052000,-500.0,0.00011173,2]
[421864916,1778247052000,-338.61933747,9.764e-05,2]
[421864915,1778247052000,-4652.36723844,9.618e-05,2]
[421864917,1778247052000,-300.0,0.0001011,2]
[421864924,1778247052000,-500.0,0.00010958,2]
[421864918,1778247052000,-300.0,0.0001011,2]
[421864919,1778247052000,-300.0,0.0001011,2]
[421864927,1778247052000,-500.0,0.00010958,2]
[421864921,1778247052000,-300.0,0.00010311,2]
[421864945,1778247052000,-500.0,0.0001123,2]
[421864925,1778247052000,-500.0,0.00010958,2]
[421864920,1778247052000,-8670.70336641,0.00010113,2]
[421864923,1778247052000,-500.0,0.00010958,2]
[421864926,1778247052000,-500.0,0.00010958,2]
[421864938,1778247052000,-500.0,0.00011173,2]
[421864922,1778247052000,-500.0,0.00010958,2]
[421864946,1778247052000,-500.0,0.0001123,2]
[421864980,1778247052000,-500.0,0.00011504,2]
[421864951,1778247052000,-506.25,0.0001123,2]
[421864965,1778247052000,-500.0,0.00011232,2]
[421864967,1778247052000,-600.0,0.00011395,2]
[421864973,1778247052000,-500.0,0.00011447,2]
[421864970,1778247052000,-500.0,0.00011447,2]
[421864974,1778247052000,-500.0,0.00011447,2]
[421864978,1778247052000,-500.0,0.00011504,2]
[421864966,1778247052000,-500.0,0.00011232,2]
[421864976,1778247052000,-500.0,0.00011447,2]
[421864979,1778247052000,-500.0,0.00011504,2]
[421864983,1778247052000,-500.0,0.00011504,2]
[421864977,1778247052000,-500.0,0.00011504,2]
[421864975,1778247052000,-500.0,0.00011447,2]
[421864982,1778247052000,-660.83,0.00011504,2]
[421864955,1778247052000,-641.19,0.0001123,2]
[421864981,1778247052000,-3348.45,0.00011504,2]
[421864968,1778247052000,-336.41054901,0.00011418,2]
[421864984,1778247052000,-500.0,0.00011504,2]
[421864962,1778247052000,-500.0,0.00011232,2]
[421864964,1778247052000,-500.0,0.00011232,2]